[Event "GEO-ch U20 Girls 2020"]
[Site "Tbilisi"]
[Date "2020.08.07"]
[Round "2.10"]
[White "Oniani, Tamar"]
[Black "Esadze, Tamari"]
[Result "0-1"]
[ECO "E04"]
[WhiteElo "1569"]
[BlackElo "1882"]
[Annotator "NA RC"]
[PlyCount "52"]
[EventDate "2020.08.06"]
[EventType "tourn"]
[EventCountry "GEO"]
[SourceTitle "playchess.com"]
[Source "ChessBase"]
[SourceQuality "1"]
[TimeControl "40/5400+30:1800+30"]

1. d4 {[%emt 0:00:00]} d5 {[%emt 0:00:00]} 2. c4 {[%emt 0:00:00]} e6 {[%emt 0:00:00]} 3. Nf3 {[%emt 0:00:00]} Nf6 {[%emt 0:00:00]} 4. g3 {[%emt 0:00:00]} dxc4 {[%emt 0:00:48]} 5. Bg2 {[%emt 0:00:00]} Nc6 {[%emt 0:00:04]} 6. O-O {[%emt 0:00:11]} Rb8 {[%emt 0:00:06]} 7. a4 {[%emt 0:00:36]} a6 {[%emt 0:00:14]} 8. Nc3 {[%emt 0:00:20]} Bb4 {[%emt 0:00:11] has lost popularity (8...Be7). E04: Open Catalan: 5 Nf3.} 9. Bg5 {[%emt 0:05:27]} h6 {[%emt 0:03:09]} 10. Bxf6 {[%emt 0:01:24]} Qxf6 {[%emt 0:00:06]} 11. Ne4 {[%emt 0:00:35]} Qe7 {[%emt 0:04:52] [#]} 12. Ne5 $146 {[%emt 0:11:23]} ({Predecessor:} 12. Qc2 Na5 13. Ne5 O-O 14. Nxc4 Nxc4 15. Qxc4 c6 16. Rfd1 Bd7 17. Rac1 Rfd8 18. Nc5 {1-0 (65) Kalavannan,K (2324)-Sedykh,M (2119) chess.com INT 2020}) 12... Nxe5 {[%emt 0:07:34]} 13. dxe5 {[%emt 0:00:04]} O-O {[%emt 0:03:19]} 14. Qc2 {[%emt 0:17:00]} b5 {[%emt 0:06:56]} 15. axb5 {[%emt 0:00:31]} axb5 {[%emt 0:00:02]} 16. Rfc1 {[%emt 0:00:05]} Bb7 {[%emt 0:04:54]} 17. Ra7 {[%emt 0:04:48]} Bd5 {[%emt 0:12:52]} 18. Nc3 {[%emt 0:10:05]} (18. e3 $17) 18... Bxg2 {[%emt 0:05:00]} 19. Kxg2 {[%emt 0:00:08]} Qc5 {[%emt 0:00:13]} 20. Ra2 {[%emt 0:14:00]} Qxe5 {[%emt 0:01:18]} 21. b3 {[%emt 0:00:03]} cxb3 {[%emt 0:03:37]} 22. Qxb3 {[%emt 0:00:07]} Bxc3 {[%emt 0:00:18]} 23. Rxc3 {[%emt 0:01:00]} c5 $19 {[%emt 0:05:47]} 24. Rac2 {[%emt 0:00:06]} c4 {[%emt 0:00:56]} 25. Qb4 {[%emt 0:00:25]} Rfd8 {[%emt 0:01:23]} 26. Ra3 {[%emt 0:02:36]} Qe4+ {[%emt 0:00:29]} 0-1

[Event "GEO-ch U20 Girls 2020"]
[Site "Tbilisi"]
[Date "2020.08.07"]
[Round "2.12"]
[White "Kostava, Elene"]
[Black "Antia, Sopia"]
[Result "1-0"]
[ECO "A06"]
[WhiteElo "1797"]
[BlackElo "1653"]
[Annotator "NA RC"]
[PlyCount "77"]
[EventDate "2020.08.06"]
[EventType "tourn"]
[EventCountry "GEO"]
[SourceTitle "playchess.com"]
[Source "ChessBase"]
[SourceQuality "1"]
[TimeControl "40/5400+30:1800+30"]

1. Nf3 {[%emt 0:00:00]} d5 {[%emt 0:00:00]} 2. e3 {[%emt 0:00:00]} Nf6 {[%emt 0:00:00]} 3. c4 {[%emt 0:00:00]} e6 {[%emt 0:00:00]} 4. Be2 {[%emt 0:00:00]} Be7 {[%emt 0:00:00]} 5. O-O {[%emt 0:00:08]} O-O {[%emt 0:00:00]} 6. b3 {[%emt 0:00:28]} c5 {[%emt 0:00:46]} 7. cxd5 {[%emt 0:00:20]} exd5 {[%emt 0:01:53]} 8. d4 {[%emt 0:00:25]} Nbd7 {[%emt 0:05:01]} 9. Nc3 {[%emt 0:01:30]} a6 {[%emt 0:15:46]} 10. Bb2 {[%emt 0:00:59]} b6 {[%emt 0:01:59]} 11. dxc5 {[%emt 0:00:56]} Nxc5 {[%emt 0:01:02]} 12. Nd4 {[%emt 0:00:50]} Bb7 {[%emt 0:03:25]} 13. Nf5 {[%emt 0:01:23]} Ne6 {[%emt 0:03:18]} 14. Qd3 {[%emt 0:17:52]} Re8 {[%emt 0:08:05]} 15. Nxe7+ {[%emt 0:03:47]} Rxe7 {[%emt 0:00:05]} 16. Rad1 {[%emt 0:15:11]} Rd7 {[%emt 0:02:48]} 17. Nb1 {[%emt 0:01:48]} Rc8 {[%emt 0:07:26]} 18. f4 {[%emt 0:01:57]} Bc6 {[%emt 0:18:18]} 19. Qf5 {[%emt 0:04:41]} d4 {[%emt 0:06:28]} 20. Bxa6 {[%emt 0:01:38]} Be4 {[%emt 0:01:28]} 21. Qh3 {[%emt 0:04:30]} Rc2 {[%emt 0:02:18]} 22. Rd2 {[%emt 0:00:06]} d3 {[%emt 0:03:24]} 23. Rfd1 {[%emt 0:05:47]} Nc5 {[%emt 0:05:18]} 24. Bc4 {[%emt 0:01:09]} Bg6 {[%emt 0:02:55]} 25. f5 {[%emt 0:02:33]} Rxb2 {[%emt 0:02:10]} 26. fxg6 {[%emt 0:01:33]} Rc2 {[%emt 0:02:02]} 27. gxf7+ {[%emt 0:01:01]} Kf8 {[%emt 0:00:17]} 28. Qh4 {[%emt 0:05:30]} Rxd2 {[%emt 0:03:26]} 29. Nxd2 {[%emt 0:00:28]} Re7 {[%emt 0:01:27]} 30. Qh3 {[%emt 0:02:30]} h6 {[%emt 0:00:28]} 31. Rf1 {[%emt 0:02:35]} Re5 {[%emt 0:02:11]} 32. b4 {[%emt 0:02:49]} Na4 {[%emt 0:01:03]} 33. Rc1 {[%emt 0:02:58]} Qd7 {[%emt 0:00:24]} 34. Qf3 {[%emt 0:00:39]} Nd5 {[%emt 0:00:29]} 35. Bb5 {[%emt 0:01:16]} Qxf7 {[%emt 0:00:51]} 36. Rc8+ {[%emt 0:03:45]} Ke7 {[%emt 0:00:04]} 37. Re8+ {[%emt 0:00:50]} Qxe8 {[%emt 0:00:27]} 38. Bxe8 {[%emt 0:00:06]} Kxe8 {[%emt 0:00:02]} 39. Nc4 {[%emt 0:00:07]} 1-0

[Event "GEO-ch U20 Girls 2020"]
[Site "Tbilisi"]
[Date "2020.08.08"]
[Round "3.8"]
[White "Esadze, Tamari"]
[Black "Kostava, Elene"]
[Result "1-0"]
[ECO "B65"]
[WhiteElo "1882"]
[BlackElo "1797"]
[Annotator "NA RC"]
[PlyCount "67"]
[EventDate "2020.08.06"]
[EventType "tourn"]
[EventCountry "GEO"]
[SourceTitle "playchess.com"]
[Source "ChessBase"]
[SourceQuality "1"]
[TimeControl "40/5400+30:1800+30"]

{[%evp 21,58,1,32767,23,105,56,85,29,56,19,74,36,110,41,28,37,60,70,118,90,181,195,228,225,246,232,350,135,188,119,1807,2258,29991,29992,29992,29993,29993,588,622]} 1. e4 {[%emt 0:00:00]} c5 {[%emt 0:00:00]} 2. Nf3 {[%emt 0:00:00]} Nc6 {[%emt 0:00:00]} 3. d4 {[%emt 0:00:00]} cxd4 {[%emt 0:00:00]} 4. Nxd4 {[%emt 0:00:00]} Nf6 {[%emt 0:00:00]} 5. Nc3 {[%emt 0:00:00]} d6 {[%emt 0:00:00]} 6. Bg5 {[%emt 0:00:00]} e6 {[%emt 0:00:06]} 7. Qd2 {[%emt 0:00:00]} Be7 {[%emt 0:00:05]} 8. O-O-O {[%emt 0:00:00]} O-O {[%emt 0:00:07]} 9. f4 {[%emt 0:00:21]} Nxd4 {[%emt 0:00:12]} 10. Qxd4 {[%emt 0:00:04]} Qa5 {[%emt 0:00:11]} 11. Kb1 {[%emt 0:10:50]} Rd8 {[%emt 0:00:45]} 12. Qd2 {[%emt 0:05:32]} Kh8 {[%emt 0:07:33] [#] B65: Sicilian: Richter-Rauzer: 7...Be7 8 0-0-0 0-0 9 f4 Nxd4.} (12... h6 $14 13. Bxf6 Bxf6) 13. g4 $146 {[%emt 0:13:00]} ({Predecessor:} 13. Be2 Bd7 14. Bf3 Rac8 15. Rhe1 b5 16. e5 b4 17. Ne4 dxe5 18. Qf2 exf4 19. Qh4 Qc7 20. Rc1 {1-0 (51) Shapoval,G-Alyabusheva,G (2143) Sevastopol 2000}) 13... Bd7 {[%emt 0:01:58]} 14. f5 {[%emt 0:03:27]} Bc6 {[%emt 0:02:19]} 15. Bg2 {[%emt 0:06:00]} Rd7 {[%emt 0:02:48]} (15... b5 $11) 16. Bf3 {[%emt 0:14:29]} b5 {[%emt 0:05:58]} ({Black should try} 16... d5 $14 17. fxe6 fxe6 18. exd5 exd5) 17. Qe3 {[%emt 0:02:49]} b4 {[%emt 0:01:00]} 18. Ne2 $1 {[%emt 0:00:04]} e5 {[%emt 0:00:19]} 19. Bxf6 {[%emt 0:01:02]} Bxf6 {[%emt 0:01:21]} (19... gxf6 $14 20. Ng3 Rg8) 20. g5 {[%emt 0:03:17]} Be7 {[%emt 0:00:07] [#]} (20... Bd8 $16 {keeps fighting.}) 21. f6 $1 {[%emt 0:01:46]} gxf6 {[%emt 0:00:31]} 22. gxf6 {[%emt 0:01:26]} Bxf6 {[%emt 0:00:06]} 23. Bg4 {[%emt 0:00:04]} Rdd8 {[%emt 0:04:51]} (23... Rg8 $142 24. Bxd7 Bxd7) 24. Rhf1 {[%emt 0:01:23]} (24. Bf5 $18 {and White stays clearly on top.} Rg8 25. Rhg1 (25. Rxd6 Bg5 $16)) 24... Bg7 {[%emt 0:01:27]} (24... Qc5 $16 {was necessary.} 25. Qf3 Bg7) 25. Rxf7 {[%emt 0:03:48]} (25. Ng3 $18) 25... Be8 $2 {[%emt 0:01:52] [#]} (25... Rf8 $16 26. Rxg7 Kxg7) 26. Rxg7 $1 {[%emt 0:06:15]} Kxg7 {[%emt 0:00:12]} 27. Qg5+ {[%emt 0:00:03]} Bg6 {[%emt 0:00:31]} 28. Qe7+ {[%emt 0:00:14]} Kh6 {[%emt 0:01:08]} 29. Ng3 {[%emt 0:00:28]} (29. Rd3 $142 Qxa2+ 30. Kxa2 b3+ 31. Rxb3 Rf8 32. Rh3+ Bh5 33. Rxh5+ Kg6 34. Rg5+ Kh6 35. Qg7#) 29... Rf8 $18 {[%emt 0:05:29]} 30. Nf5+ Bxf5 {[%emt 0:01:29]} 31. Bxf5 {[%emt 0:01:48]} Rh8 {[%emt 0:03:51]} 32. Qf6+ {[%emt 0:01:28]} Kh5 {[%emt 0:00:07]} 33. Bg4+ Kxg4 {[%emt 0:00:09]} 34. Rg1+ {[%emt 0:00:10]} 1-0

[Event "GEO-ch U20 Girls 2020"]
[Site "Tbilisi"]
[Date "2020.08.08"]
[Round "3.10"]
[White "Tsetskhladze, Mariam"]
[Black "Kirtadze, Anastasia"]
[Result "0-1"]
[ECO "B51"]
[WhiteElo "1397"]
[BlackElo "1679"]
[Annotator "NA RC"]
[PlyCount "84"]
[EventDate "2020.08.06"]
[EventType "tourn"]
[EventCountry "GEO"]
[SourceTitle "playchess.com"]
[Source "ChessBase"]
[SourceQuality "1"]
[TimeControl "40/5400+30:1800+30"]

1. e4 {[%emt 0:00:00]} c5 {[%emt 0:00:12]} 2. Nf3 {[%emt 0:00:00]} d6 {[%emt 0:00:51]} 3. Bb5+ {[%emt 0:00:00]} Nd7 {[%emt 0:02:32]} 4. d4 {[%emt 0:01:23]} cxd4 {[%emt 0:02:01]} 5. Qxd4 {[%emt 0:00:09]} a6 {[%emt 0:02:22]} 6. Bxd7+ {[%emt 0:01:23]} Bxd7 {[%emt 0:00:13]} 7. Nc3 {[%emt 0:01:06]} e5 {[%emt 0:01:23]} 8. Qd3 {[%emt 0:00:26]} h6 {[%emt 0:03:52]} 9. O-O {[%emt 0:02:49]} Nf6 {[%emt 0:00:10]} 10. h3 {[%emt 0:02:58]} Be7 {[%emt 0:03:48]} 11. Be3 {[%emt 0:01:38]} O-O {[%emt 0:01:01]} 12. Rad1 {[%emt 0:06:07]} Qc7 {[%emt 0:03:41]} 13. Bc1 {[%emt 0:18:21]} Be6 {[%emt 0:07:53]} 14. b3 {[%emt 0:08:40]} b5 {[%emt 0:06:08]} 15. a3 {[%emt 0:02:00]} Rac8 {[%emt 0:00:39]} 16. Bd2 {[%emt 0:08:22]} Rfd8 {[%emt 0:08:24]} 17. Qe2 {[%emt 0:09:51]} Qb7 {[%emt 0:05:35]} 18. Rfe1 {[%emt 0:06:47]} Rc5 {[%emt 0:10:19]} 19. Qe3 {[%emt 0:07:02]} Rdc8 {[%emt 0:07:14]} 20. Nh4 {[%emt 0:04:25]} Nh5 {[%emt 0:06:57]} 21. Qe2 {[%emt 0:07:12]} Nf4 {[%emt 0:07:03]} 22. Bxf4 {[%emt 0:02:15]} exf4 {[%emt 0:02:03]} 23. Nf5 {[%emt 0:02:48]} Rxc3 {[%emt 0:01:22]} 24. Nd4 {[%emt 0:00:26]} f3 {[%emt 0:02:26]} 25. gxf3 {[%emt 0:00:51]} Bxh3 {[%emt 0:00:16]} 26. Kh2 {[%emt 0:00:05]} Be6 {[%emt 0:00:52]} 27. Rg1 {[%emt 0:00:58]} Bf6 {[%emt 0:01:24]} 28. Qd2 {[%emt 0:03:09]} Bg5 {[%emt 0:03:50]} 29. Qe2 {[%emt 0:01:15]} Bf4+ {[%emt 0:01:05]} 30. Kg2 {[%emt 0:00:07]} Qd7 {[%emt 0:00:45]} 31. Kf1 {[%emt 0:00:32]} Bh2 {[%emt 0:00:32]} 32. Rh1 {[%emt 0:00:26]} Be5 {[%emt 0:00:07]} 33. Qd2 {[%emt 0:00:55]} Bxd4 {[%emt 0:01:29]} 34. Qxd4 {[%emt 0:00:03]} Rxf3 {[%emt 0:00:27]} 35. Rg1 {[%emt 0:01:09]} g6 {[%emt 0:01:22]} 36. Rd2 {[%emt 0:00:29]} Bh3+ {[%emt 0:00:57]} 37. Ke2 {[%emt 0:00:20]} Bg4 {[%emt 0:00:08]} 38. Kf1 {[%emt 0:00:48]} h5 {[%emt 0:00:06]} 39. e5 {[%emt 0:00:43]} d5 {[%emt 0:00:53]} 40. Ke1 {[%emt 0:00:38]} Qe7 {[%emt 0:00:51]} 41. Qxd5 {[%emt 0:30:37]} Qxa3 {[%emt 0:30:24]} 42. e6 {[%emt 0:00:35]} Re8 {[%emt 0:00:47]} 0-1

[Event "GEO-ch U20 Girls 2020"]
[Site "Tbilisi"]
[Date "2020.08.09"]
[Round "4.8"]
[White "Donghvani, Nia"]
[Black "Kirtadze, Anastasia"]
[Result "1-0"]
[ECO "D02"]
[WhiteElo "1994"]
[BlackElo "1679"]
[Annotator "ChessBase"]
[PlyCount "125"]
[EventDate "2020.08.06"]
[EventType "tourn"]
[EventCountry "GEO"]
[SourceTitle "playchess.com"]
[Source "ChessBase"]
[SourceQuality "1"]
[TimeControl "40/5400+30:1800+30"]

1. d4 {[%emt 0:00:28]} d5 {[%emt 0:00:34]} 2. Nf3 {[%emt 0:00:36]} Nf6 {[%emt 0:01:14]} 3. g3 {[%emt 0:00:29]} e6 {[%emt 0:00:57]} 4. Bg2 {[%emt 0:00:30]} c5 {[%emt 0:05:38]} 5. O-O {[%emt 0:07:53]} Nc6 {[%emt 0:02:09]} 6. a3 {[%emt 0:05:46]} cxd4 {[%emt 0:05:16]} 7. Nxd4 {[%emt 0:00:40]} Bc5 {[%emt 0:00:55]} 8. Nxc6 {[%emt 0:05:47]} bxc6 {[%emt 0:00:15]} 9. c4 {[%emt 0:00:08]} O-O {[%emt 0:02:17]} 10. Qc2 {[%emt 0:07:40]} Bb6 {[%emt 0:07:02]} 11. Nd2 {[%emt 0:05:08]} e5 {[%emt 0:10:10]} 12. Nb3 {[%emt 0:09:29]} Bb7 {[%emt 0:03:57]} 13. Bd2 {[%emt 0:04:42]} Ba6 {[%emt 0:07:45]} 14. cxd5 {[%emt 0:07:00]} cxd5 {[%emt 0:00:08]} 15. Bb4 {[%emt 0:02:05]} Re8 {[%emt 0:00:28]} 16. Rad1 {[%emt 0:05:57]} Rc8 {[%emt 0:02:30]} 17. Qd2 {[%emt 0:01:48]} Bc4 {[%emt 0:06:14]} 18. Na5 {[%emt 0:07:07]} Bxa5 {[%emt 0:00:26]} 19. Bxa5 {[%emt 0:00:16]} Qd7 {[%emt 0:00:50]} 20. Rfe1 {[%emt 0:04:54]} Qb5 {[%emt 0:03:26]} 21. e3 {[%emt 0:06:39]} e4 {[%emt 0:04:22]} 22. Bc3 {[%emt 0:00:51]} Bd3 {[%emt 0:00:33]} 23. Bf1 {[%emt 0:00:40]} Bxf1 {[%emt 0:03:41]} 24. Rxf1 {[%emt 0:00:04]} Rc6 {[%emt 0:03:00]} 25. Bxf6 {[%emt 0:06:07]} Rxf6 {[%emt 0:00:07]} 26. Qxd5 {[%emt 0:00:05]} Qb8 {[%emt 0:01:11]} 27. b4 {[%emt 0:03:07]} h6 {[%emt 0:01:53]} 28. Rd4 {[%emt 0:00:48]} Rfe6 {[%emt 0:00:32]} 29. a4 {[%emt 0:00:50]} Re5 {[%emt 0:00:24]} 30. Qd6 {[%emt 0:02:42]} Qc8 {[%emt 0:00:24]} 31. Qd7 {[%emt 0:01:13]} Qa6 {[%emt 0:00:31]} 32. b5 {[%emt 0:02:06]} Qb6 {[%emt 0:01:26]} 33. Rd6 {[%emt 0:01:09]} Qb8 {[%emt 0:00:45]} 34. Rc1 {[%emt 0:00:56]} R5e7 {[%emt 0:00:44]} 35. Qc6 {[%emt 0:00:06]} Rf8 {[%emt 0:03:32]} 36. Qd5 {[%emt 0:00:27]} Qe8 {[%emt 0:01:16]} 37. Rdc6 {[%emt 0:00:25]} Re5 {[%emt 0:01:41]} 38. Qd4 {[%emt 0:00:11]} Qe7 {[%emt 0:00:41]} 39. Rc7 {[%emt 0:00:17]} Qe6 {[%emt 0:00:07]} 40. Rxa7 {[%emt 0:01:44]} Rd5 {[%emt 0:00:59]} 41. Qc4 {[%emt 0:30:25]} Rd1+ {[%emt 0:30:26]} 42. Kg2 {[%emt 0:00:02]} Rxc1 {[%emt 0:00:06]} 43. Qxc1 {[%emt 0:00:06]} Qg4 {[%emt 0:00:05]} 44. Qd2 {[%emt 0:01:11]} Rb8 {[%emt 0:01:58]} 45. Rd7 {[%emt 0:00:15]} Qf3+ {[%emt 0:00:33]} 46. Kg1 {[%emt 0:00:05]} Kh7 {[%emt 0:00:22]} 47. Qd1 {[%emt 0:00:09]} Qf5 {[%emt 0:00:16]} 48. Qd5 {[%emt 0:00:32]} Qg4 {[%emt 0:01:13]} 49. Rxf7 {[%emt 0:00:21]} Kh8 {[%emt 0:00:12]} 50. Rf4 {[%emt 0:00:35]} Qe2 {[%emt 0:00:37]} 51. Qxe4 {[%emt 0:00:05]} Rc8 {[%emt 0:00:29]} 52. Kg2 {[%emt 0:00:21]} Qa2 {[%emt 0:01:06]} 53. Qb7 {[%emt 0:01:01]} Rd8 {[%emt 0:00:14]} 54. Qf7 {[%emt 0:00:36]} Qa3 {[%emt 0:00:41]} 55. Rg4 {[%emt 0:00:29]} Rg8 {[%emt 0:00:49]} 56. b6 {[%emt 0:00:04]} Qc3 {[%emt 0:00:11]} 57. b7 {[%emt 0:00:45]} Qc6+ {[%emt 0:00:05]} 58. Qf3 {[%emt 0:00:21]} Qb6 {[%emt 0:00:13]} 59. Rc4 {[%emt 0:00:17]} Qe6 {[%emt 0:00:09]} 60. Qc6 {[%emt 0:00:23]} Qf7 {[%emt 0:00:14]} 61. Qc8 {[%emt 0:00:52]} Qd5+ {[%emt 0:00:25]} 62. e4 {[%emt 0:00:11]} Qd6 {[%emt 0:00:08]} 63. Qxg8+ {[%emt 0:00:27]} 1-0

[Event "GEO-ch U20 Girls 2020"]
[Site "Tbilisi"]
[Date "2020.08.09"]
[Round "4.9"]
[White "Tsotsonava, Elene"]
[Black "Bechvaia, Maia"]
[Result "0-1"]
[ECO "B32"]
[WhiteElo "2012"]
[BlackElo "1597"]
[Annotator "ChessBase"]
[PlyCount "102"]
[EventDate "2020.08.06"]
[EventType "tourn"]
[EventCountry "GEO"]
[SourceTitle "playchess.com"]
[Source "ChessBase"]
[SourceQuality "1"]
[TimeControl "40/5400+30:1800+30"]

1. e4 {[%emt 0:00:00]} c5 {[%emt 0:00:08]} 2. Nf3 {[%emt 0:00:00]} Nc6 {[%emt 0:00:37]} 3. d4 {[%emt 0:00:00]} cxd4 {[%emt 0:00:06]} 4. Nxd4 {[%emt 0:00:00]} e5 {[%emt 0:00:08]} 5. Nb5 {[%emt 0:00:07]} d6 {[%emt 0:00:13]} 6. N1c3 {[%emt 0:00:18]} a6 {[%emt 0:00:15]} 7. Na3 {[%emt 0:00:05]} b5 {[%emt 0:00:04]} 8. Nd5 {[%emt 0:00:03]} Be6 {[%emt 0:05:09]} 9. c4 {[%emt 0:00:44]} bxc4 {[%emt 0:11:51]} 10. Nxc4 {[%emt 0:00:57]} Bxd5 {[%emt 0:00:38]} 11. exd5 {[%emt 0:04:05]} Nb8 {[%emt 0:04:05]} 12. Be3 {[%emt 0:04:26]} Nd7 {[%emt 0:00:36]} 13. Qa4 {[%emt 0:02:59]} Ngf6 {[%emt 0:02:03]} 14. Bb6 {[%emt 0:09:10]} Qb8 {[%emt 0:01:52]} 15. Qc6 {[%emt 0:11:25]} Be7 {[%emt 0:02:55]} 16. Be2 {[%emt 0:13:26]} O-O {[%emt 0:00:21]} 17. Bc7 {[%emt 0:05:20]} Qb4+ {[%emt 0:00:34]} 18. Kf1 {[%emt 0:00:08]} Rac8 {[%emt 0:03:54]} 19. Rd1 {[%emt 0:09:25]} a5 {[%emt 0:33:57]} 20. Bxa5 {[%emt 0:09:48]} Qb8 {[%emt 0:00:35]} 21. Qa4 {[%emt 0:00:20]} Nc5 {[%emt 0:00:15]} 22. Qb4 {[%emt 0:00:35]} Qa7 {[%emt 0:02:41]} 23. Qb6 {[%emt 0:05:03]} Qa8 {[%emt 0:01:04]} 24. Qb5 {[%emt 0:07:16]} Rb8 {[%emt 0:01:01]} 25. Qc6 {[%emt 0:01:33]} Qa7 {[%emt 0:00:49]} 26. Bb6 {[%emt 0:04:05]} Qxa2 {[%emt 0:00:21]} 27. Bxc5 {[%emt 0:01:42]} Rfc8 {[%emt 0:00:31]} 28. Bxd6 {[%emt 0:01:18]} Rxc6 {[%emt 0:00:10]} 29. dxc6 {[%emt 0:00:10]} Bxd6 {[%emt 0:00:11]} 30. Nxd6 {[%emt 0:00:31]} Qa5 {[%emt 0:02:16]} 31. Nb5 {[%emt 0:05:21]} g6 {[%emt 0:01:59]} 32. h4 {[%emt 0:02:15]} Kg7 {[%emt 0:01:08]} 33. c7 {[%emt 0:00:52]} Rc8 {[%emt 0:00:18]} 34. Rh3 {[%emt 0:00:46]} Ne8 {[%emt 0:01:20]} 35. Rc3 {[%emt 0:00:26]} Nxc7 {[%emt 0:02:27]} 36. Rdc1 {[%emt 0:00:16]} Nxb5 {[%emt 0:00:09]} 37. Rxc8 {[%emt 0:00:03]} Nd4 {[%emt 0:00:11]} 38. Bc4 {[%emt 0:02:00]} Qd2 {[%emt 0:01:06]} 39. Bd5 {[%emt 0:00:56]} Qd3+ {[%emt 0:04:23]} 40. Kg1 {[%emt 0:00:09]} Ne2+ {[%emt 0:00:06]} 41. Kh2 {[%emt 0:30:16]} Nxc1 {[%emt 0:30:08]} 42. Bc4 {[%emt 0:00:44]} Qd7 {[%emt 0:00:14]} 43. Rc5 {[%emt 0:00:19]} Qd6 {[%emt 0:00:29]} 44. Rd5 {[%emt 0:00:43]} Qc6 {[%emt 0:00:07]} 45. b3 {[%emt 0:00:07]} e4 {[%emt 0:01:51]} 46. h5 {[%emt 0:00:38]} Qf6 {[%emt 0:01:33]} 47. Kg1 {[%emt 0:01:04]} gxh5 {[%emt 0:02:52]} 48. Rxh5 {[%emt 0:00:41]} Nd3 {[%emt 0:00:09]} 49. f3 {[%emt 0:00:39]} Qd4+ {[%emt 0:01:05]} 50. Kh2 {[%emt 0:00:08]} e3 {[%emt 0:00:36]} 51. Rd5 {[%emt 0:01:00]} Qxd5 {[%emt 0:00:37]} 0-1

[Event "GEO-ch U20 Girls 2020"]
[Site "Tbilisi"]
[Date "2020.08.09"]
[Round "4.10"]
[White "Koridze, Lile"]
[Black "Lagazauri, Tamar"]
[Result "1-0"]
[ECO "A40"]
[WhiteElo "1996"]
[BlackElo "1709"]
[Annotator "ChessBase"]
[PlyCount "105"]
[EventDate "2020.08.06"]
[EventType "tourn"]
[EventCountry "GEO"]
[SourceTitle "playchess.com"]
[Source "ChessBase"]
[SourceQuality "1"]
[TimeControl "40/5400+30:1800+30"]

1. d4 {[%emt 0:00:00]} Nf6 {[%emt 0:00:00]} 2. c4 {[%emt 0:00:00]} e6 {[%emt 0:00:00]} 3. g3 {[%emt 0:00:00]} Bb4+ {[%emt 0:01:29]} 4. Bd2 {[%emt 0:00:10]} Bxd2+ {[%emt 0:08:19]} 5. Qxd2 {[%emt 0:00:15]} d5 {[%emt 0:02:47]} 6. Bg2 {[%emt 0:03:09]} O-O {[%emt 0:02:28]} 7. Nf3 {[%emt 0:00:26]} Nbd7 {[%emt 0:07:43]} 8. Qc2 {[%emt 0:01:20]} c5 {[%emt 0:09:49]} 9. O-O {[%emt 0:06:19]} cxd4 {[%emt 0:04:12]} 10. cxd5 {[%emt 0:01:45]} Nxd5 {[%emt 0:01:27]} 11. Nxd4 {[%emt 0:00:28]} N7f6 {[%emt 0:06:58]} 12. Rd1 {[%emt 0:04:20]} Qb6 {[%emt 0:03:17]} 13. Na3 {[%emt 0:03:01]} Bd7 {[%emt 0:08:14]} 14. Nc4 {[%emt 0:04:44]} Qa6 {[%emt 0:01:06]} 15. Ne5 {[%emt 0:02:47]} Rfc8 {[%emt 0:01:55]} 16. Qd2 {[%emt 0:06:24]} Be8 {[%emt 0:02:15]} 17. e3 {[%emt 0:05:44]} Rab8 {[%emt 0:08:50]} 18. a3 {[%emt 0:01:48]} Nd7 {[%emt 0:04:20]} 19. Nd3 {[%emt 0:07:06]} Qd6 {[%emt 0:06:23]} 20. Rac1 {[%emt 0:02:55]} a6 {[%emt 0:03:13]} 21. Qe2 {[%emt 0:07:13]} Qe7 {[%emt 0:01:03]} 22. Rxc8 {[%emt 0:03:58]} Rxc8 {[%emt 0:00:10]} 23. Nf4 {[%emt 0:02:46]} Nxf4 {[%emt 0:01:38]} 24. exf4 {[%emt 0:00:05]} Nf6 {[%emt 0:02:55]} 25. Nf5 {[%emt 0:01:47]} Qc7 {[%emt 0:01:27]} 26. Nd6 {[%emt 0:00:31]} Rb8 {[%emt 0:01:28]} 27. Nxe8 {[%emt 0:02:42]} Rxe8 {[%emt 0:01:31]} 28. Qd2 {[%emt 0:02:38]} Rc8 {[%emt 0:01:47]} 29. Bf3 {[%emt 0:04:25]} g6 {[%emt 0:03:49]} 30. Qd4 {[%emt 0:01:41]} Nd5 {[%emt 0:03:43]} 31. f5 {[%emt 0:03:36]} Qc5 {[%emt 0:00:42]} 32. fxe6 {[%emt 0:00:47]} fxe6 {[%emt 0:00:24]} 33. Qe5 {[%emt 0:01:54]} Kf7 {[%emt 0:00:33]} 34. Bxd5 {[%emt 0:05:50]} exd5 {[%emt 0:00:02]} 35. Rxd5 {[%emt 0:00:43]} Qc1+ {[%emt 0:00:50]} 36. Kg2 {[%emt 0:00:06]} Qc6 {[%emt 0:00:03]} 37. Qd6 {[%emt 0:00:52]} Qxd6 {[%emt 0:00:46]} 38. Rxd6 {[%emt 0:00:06]} Ke7 {[%emt 0:00:47]} 39. Rb6 {[%emt 0:00:16]} Rc7 {[%emt 0:00:14]} 40. f4 {[%emt 0:01:08]} Kd7 {[%emt 0:00:45]} 41. Kf3 {[%emt 0:31:12]} Kc8 {[%emt 0:30:35]} 42. Rb3 {[%emt 0:00:41]} Rd7 {[%emt 0:00:31]} 43. Rc3+ {[%emt 0:00:28]} Kb8 {[%emt 0:00:27]} 44. b4 {[%emt 0:00:29]} Ka7 {[%emt 0:00:32]} 45. g4 {[%emt 0:00:44]} Kb6 {[%emt 0:00:30]} 46. f5 {[%emt 0:00:38]} Rf7 {[%emt 0:00:31]} 47. Kf4 {[%emt 0:00:18]} h5 {[%emt 0:00:27]} 48. Kg5 {[%emt 0:01:06]} gxf5 {[%emt 0:00:30]} 49. gxf5 {[%emt 0:00:04]} Rg7+ {[%emt 0:00:29]} 50. Kh6 {[%emt 0:01:11]} Rg2 {[%emt 0:00:21]} 51. Rf3 {[%emt 0:00:10]} Rxh2 {[%emt 0:00:41]} 52. f6 {[%emt 0:00:04]} Rd2 {[%emt 0:00:26]} 53. f7 {[%emt 0:00:07]} 1-0

[Event "GEO-ch U20 Girls 2020"]
[Site "Tbilisi"]
[Date "2020.08.09"]
[Round "4.11"]
[White "Lagazauri, Tamar"]
[Black "Oniani, Tamar"]
[Result "*"]
[ECO "E73"]
[WhiteElo "1709"]
[BlackElo "1569"]
[Annotator "NA RC"]
[PlyCount "27"]
[EventDate "2020.08.06"]
[EventType "tourn"]
[EventCountry "GEO"]
[SourceTitle "playchess.com"]
[Source "ChessBase"]
[SourceQuality "1"]
[TimeControl "40/5400+30:1800+30"]

1. d4 {[%emt 0:00:00]} Nf6 {[%emt 0:00:00]} 2. c4 {[%emt 0:00:00]} g6 {[%emt 0:00:00]} 3. Nc3 {[%emt 0:00:00]} Bg7 {[%emt 0:00:00]} 4. e4 {[%emt 0:00:00]} d6 {[%emt 0:00:00]} 5. Be2 {[%emt 0:00:00]} O-O {[%emt 0:00:00]} 6. Bg5 {[%emt 0:00:00]} Na6 {[%emt 0:00:27]} 7. Qd2 {[%emt 0:00:11]} e5 {[%emt 0:00:29]} 8. d5 {[%emt 0:00:28]} Qe8 {[%emt 0:00:45]} 9. h4 {[%emt 0:04:41]} Nc5 {[%emt 0:15:37]} 10. Bxf6 {[%emt 0:28:00]} Bxf6 {[%emt 0:00:18]} 11. g4 {[%emt 0:00:03]} Qe7 {[%emt 0:20:08]} 12. g5 {[%emt 0:06:28]} Bg7 {[%emt 0:00:39]} 13. O-O-O {[%emt 0:16:42]} f5 {[%emt 0:01:33]} 14. f3 {[%emt 0:00:02]} *